bitfinex/quotes_SOLUSD_20241001
["timestamp","ask_amount","ask_price","bid_price","bid_amount"]
[1727744663895,16.1641,154.67,154.51,34.63324414]
[1727744664193,16.1641,154.67,154.56,6.4695]
[1727744664194,6.4674,154.62,154.56,6.4695]
[1727744664400,6.4674,154.62,154.57,30.246384]
[1727744665267,6.467,154.63,154.58,6.4691]
[1727744667773,6.4666,154.64,154.59,6.4683]
[1727744668194,20.0,154.68,154.58,23.776884]
[1727744668496,6.4664,154.65,154.6,6.4682]
[1727744669803,0.8418265,154.69,154.61,6.4676]
[1727744670098,6.465,154.68,154.63,6.4669]
[1727744670401,7.3063265,154.69,154.63,6.4669]
[1727744670584,0.8418265,154.69,154.64,21.882]
[1727744670996,0.8418265,154.69,154.66,6.4657]
[1727744671387,0.8418265,154.69,154.64,15.4158]
[1727744671597,0.8418265,154.69,154.65,23.776884]
[1727744672274,0.8418265,154.69,154.67,6.4652]
[1727744672679,0.8418265,154.69,154.68,6.4649]
[1727744672904,0.8418265,154.69,154.67,6.4653]
[1727744674283,0.8418265,154.69,154.68,6.4649]
[1727744674482,0.8418265,154.69,154.68,30.241784]
[1727744675408,0.8418265,154.69,154.66,22.6291]
[1727744675707,0.8418265,154.69,154.68,23.776884]
[1727744676006,0.8418265,154.69,154.67,6.4653]
[1727744676693,0.8418265,154.69,154.67,23.776884]
[1727744679913,0.8418265,154.69,154.67,30.242184]
[1727744680424,0.8418265,154.69,154.68,30.241784]
[1727744680605,0.8418265,154.69,154.68,6.4649]
[1727744682403,0.8418265,154.69,154.68,30.241784]
[1727744683219,0.8418265,154.69,154.68,46.066084]
[1727744683521,0.8418265,154.69,154.68,52.183184]
[1727744685011,0.8418265,154.69,154.68,28.4063]
[1727744687320,0.8418265,154.69,154.68,22.2892]
[1727744688001,0.8418265,154.69,154.68,46.066084]
[1727744690696,0.8418265,154.69,154.66,16.1634]
[1727744691096,0.8418265,154.69,154.66,22.6291]
[1727744694494,0.8418265,154.69,154.67,6.4653]
[1727744694927,0.8418265,154.69,154.68,6.4649]
[1727744695521,0.8418265,154.69,154.68,30.241784]
[1727744700426,0.8418265,154.69,154.68,50.241784]
[1727744701216,0.8418265,154.69,154.68,30.241784]
[1727744701417,0.8418265,154.69,154.68,6.4649]
[1727744702526,0.8418265,154.69,154.68,30.241784]
[1727744704132,0.8418265,154.69,154.66,16.1634]
[1727744704501,0.8418265,154.69,154.58,6.486]
[1727744704502,0.8418265,154.69,154.6,22.4907]
[1727744705040,6.465,154.68,154.63,22.6344]
[1727744705204,0.8418265,154.69,154.63,22.6344]
[1727744705405,7.3063265,154.69,154.63,22.6344]
[1727744705604,7.3063265,154.69,154.64,6.4664]
[1727744705934,0.8418265,154.69,154.64,6.4664]
[1727744707506,7.3064265,154.69,154.64,6.4664]
[1727744707727,0.8418265,154.69,154.63,16.1674]
[1727744707929,6.4649,154.68,154.63,22.6344]
[1727744708302,0.8418265,154.69,154.64,6.4666]
[1727744709113,0.8418265,154.69,154.63,16.1674]
[1727744709320,6.4654,154.67,154.63,16.1674]
[1727744709805,0.8418265,154.69,154.63,16.1674]
[1727744710006,7.3067265,154.69,154.63,22.6343]
[1727744710526,6.4655,154.67,154.61,6.4675]
[1727744710921,6.4651,154.68,154.63,6.467]
[1727744712128,0.8418265,154.69,154.61,23.776884]
[1727744712310,7.3063265,154.69,154.63,6.4666]
[1727744713316,6.4649,154.68,154.63,6.4666]
[1727744713520,6.4655,154.67,154.62,22.636]
[1727744714320,0.8418265,154.69,154.59,6.73395937]
[1727744714611,0.8418265,154.69,154.57,6.4695]
[1727744714612,6.4676,154.62,154.57,6.4695]
[1727744714827,6.468,154.61,154.56,6.4699]
[1727744715024,6.4683,154.6,154.55,16.1758]
[1727744715239,16.1637,154.67,154.55,16.1758]
[1727744715240,6.4678,154.62,154.55,16.1758]
[1727744715447,6.4671,154.63,154.57,6.4695]
[1727744716052,6.4666,154.64,154.58,6.469]
[1727744716337,16.1637,154.67,154.57,6.4695]
[1727744716338,6.4671,154.63,154.57,6.4695]
[1727744720236,20.0,154.66,154.56,6.4698]
[1727744720237,6.4678,154.62,154.56,6.4698]
[1727744720445,20.0,154.66,154.55,16.14559]
[1727744720623,6.4666,154.64,154.58,6.4691]
[1727744721242,6.4672,154.63,154.58,6.4691]
[1727744721630,1.6168205,154.65,154.57,6.4695]
[1727744721832,21.9113,154.61,154.55,16.14559]
[1727744722039,6.4703,154.56,154.48,23.4548572]
[1727744722346,6.4701,154.56,154.51,6.472]
[1727744722643,1.61709664,154.6,154.5,22.6527]
[1727744722829,6.4695,154.57,154.52,6.4714]
[1727744723436,6.4695,154.57,154.45,6.34333989]
[1727744723437,6.4692,154.58,154.53,6.4711]
[1727744723629,6.4692,154.58,154.53,22.649]
[1727744723831,1.61740063,154.59,154.49,18.12404414]
[1727744724138,1.61740063,154.59,154.47,18.12404414]
[1727744724336,6.4699,154.57,154.51,6.472]
[1727744724725,6.4701,154.56,154.51,6.472]
[1727744725621,6.4691,154.58,154.52,6.4714]
[1727744725845,6.4696,154.57,154.52,6.4714]
[1727744728246,20.0,154.6,154.52,16.1781]
[1727744728456,26.4683,154.6,154.54,6.4704]
[1727744728644,6.4683,154.6,154.54,6.4704]
[1727744728942,6.4687,154.59,154.54,6.4704]
[1727744731141,8.08678729,154.58,154.53,6.4711]
[1727744731333,21.61744979,154.6,154.52,16.1781]
[1727744731533,20.0,154.6,154.53,30.0]
[1727744732048,6.4694,154.58,154.53,36.4711]
[1727744732549,6.4687,154.59,154.54,6.4707]
[1727744732733,1.617326,154.59,154.53,30.0]
[1727744732931,6.4691,154.58,154.53,36.4711]
[1727744733733,20.0,154.6,154.54,6.4706]
[1727744733946,26.4683,154.6,154.55,6.4703]
[1727744734349,6.4687,154.59,154.55,6.4703]
[1727744735648,6.4687,154.59,154.55,36.4703]
[1727744736056,6.4683,154.6,154.55,36.4703]
[1727744736223,21.9113,154.61,154.58,6.469]
[1727744736427,21.9113,154.61,154.57,22.6432]
[1727744736745,21.9113,154.61,154.55,36.4699]
[1727744736925,1.61714457,154.6,154.55,30.0]
[1727744737248,6.4691,154.58,154.55,30.0]
[1727744737828,6.4695,154.57,154.55,30.0]
[1727744738024,6.4691,154.58,154.53,6.4708]
[1727744738228,26.4683,154.6,154.55,6.4703]
[1727744739234,28.3792,154.61,154.56,6.4699]
[1727744739648,28.3792,154.61,154.56,36.4699]
[1727744740145,6.4674,154.63,154.58,6.4691]
[1727744740623,22.3847,154.65,154.57,16.173]
[1727744740828,6.4666,154.64,154.59,6.4686]
[1727744742742,26.4666,154.64,154.58,6.4687]
[1727744743138,28.8509,154.65,154.58,23.776884]
[1727744743324,6.4666,154.64,154.58,23.776884]
[1727744743524,22.3847,154.65,154.57,16.173]
[1727744743725,22.3847,154.65,154.59,30.0]
[1727744743953,6.4669,154.64,154.59,36.4686]
[1727744744534,22.3847,154.65,154.57,16.173]
[1727744744727,22.3847,154.65,154.6,6.4682]
[1727744744950,28.8511,154.65,154.6,6.4682]
[1727744745343,6.4666,154.64,154.59,6.4687]
[1727744745930,22.3847,154.65,154.58,23.776884]
[1727744746130,28.8509,154.65,154.6,6.4683]
[1727744748246,28.8509,154.65,154.59,16.1709]
[1727744748247,1.6167265,154.64,154.59,16.1709]
[1727744748634,6.4672,154.63,154.59,16.1709]
[1727744749145,21.6167265,154.64,154.56,22.6446]
[1727744749351,21.6167265,154.64,154.56,16.1747]
[1727744749543,6.4675,154.62,154.57,6.4695]
[1727744749955,6.4671,154.63,154.58,6.4691]
[1727744750141,20.0,154.64,154.56,16.1747]
[1727744750345,28.08359108,154.64,154.59,6.4684]
[1727744750537,26.4667,154.64,154.59,6.4684]
[1727744750747,6.4686,154.6,154.55,6.4702]
[1727744751163,6.4678,154.62,154.53,20.0]
[1727744751366,6.4674,154.63,154.56,16.1748]
[1727744751539,8.0843867,154.63,154.58,6.4689]
[1727744751858,6.4676,154.62,154.56,22.6443]
[1727744753160,6.4676,154.62,154.58,6.469]
[1727744756465,6.4676,154.62,154.57,6.4694]
[1727744757153,20.0,154.64,154.58,6.469]
[1727744758066,6.4671,154.63,154.58,6.469]
[1727744758362,26.4667,154.64,154.57,23.776884]
[1727744758670,26.4666,154.64,154.59,6.4686]
[1727744759446,28.8509,154.65,154.6,6.4682]
[1727744759653,22.3847,154.65,154.61,6.4678]
[1727744760055,28.8509,154.65,154.61,6.4678]
[1727744760553,22.3847,154.65,154.61,6.4678]
[1727744760876,15.8248,154.65,154.61,6.4678]
[1727744761173,23.4977265,154.69,154.61,6.4678]
[1727744761174,39.2106265,154.69,154.61,6.4678]
[1727744761345,6.4654,154.67,154.6,34.29404414]
[1727744761547,6.4654,154.67,154.63,6.467]
[1727744761746,29.5140265,154.69,154.63,6.467]
[1727744761948,29.5140265,154.69,154.64,6.4666]
[1727744762342,23.0491265,154.69,154.65,6.4661]
[1727744762546,0.8418265,154.69,154.65,23.776884]
[1727744762855,0.8418265,154.69,154.67,6.4653]
[1727744763482,0.8418265,154.69,154.66,6.4657]
[1727744764372,0.8418265,154.69,154.6,18.12404414]
[1727744764557,6.4654,154.67,154.62,30.0]
[1727744764878,6.4649,154.68,154.63,6.467]
[1727744765954,6.4649,154.68,154.62,6.4674]
[1727744766547,0.8418265,154.69,154.62,6.4674]
[1727744766754,6.4658,154.66,154.61,30.244684]
[1727744767149,6.4654,154.67,154.62,6.4674]
[1727744767971,0.8418265,154.69,154.6,34.29464414]
[1727744768178,7.3063265,154.69,154.65,6.4661]
[1727744768353,7.3063265,154.69,154.64,6.4665]
[1727744771072,0.8418265,154.69,154.65,6.4661]
[1727744771769,7.3063265,154.69,154.64,6.4666]
[1727744772748,0.8418265,154.69,154.63,16.1675]
[1727744772954,0.8418265,154.69,154.67,6.4653]
[1727744776070,0.8418265,154.69,154.68,48.36582814]
[1727744776969,0.8418265,154.69,154.68,30.241784]
[1727744777173,0.8418265,154.69,154.67,30.242184]
[1727744777681,0.8418265,154.69,154.67,6.4653]
[1727744778370,0.8418265,154.69,154.68,6.4649]
[1727744779263,0.8418265,154.69,154.68,48.36582814]
[1727744780257,0.8418265,154.69,154.68,78.36582814]
[1727744783187,0.2566648,154.73,154.68,91.90092814]
[1727744783362,0.2566648,154.73,154.72,30.240084]
[1727744784776,0.2566648,154.73,154.72,46.901284]
[1727744784980,0.3609138,154.76,154.75,30.238884]
[1727744785179,0.3609138,154.76,154.75,48.36292814]
[1727744786001,0.3609138,154.76,154.75,78.36292814]
[1727744786884,0.3609138,154.76,154.75,30.0]
[1727744787490,0.3609138,154.76,154.74,22.618]
[1727744789084,0.3609138,154.76,154.75,6.462]
[1727744790377,0.3609138,154.76,154.75,30.238884]
[1727744790803,0.3609138,154.76,154.75,48.36292814]
[1727744792097,0.3609138,154.76,154.75,30.238884]
[1727744795889,0.3609138,154.76,154.75,6.462]
[1727744796195,0.3609138,154.76,154.74,22.6179]
[1727744798288,0.3609138,154.76,154.68,22.9947]
[1727744798289,0.3609138,154.76,154.71,16.1591]
[1727744798494,0.3609138,154.76,154.72,36.4628]
[1727744798803,0.3609138,154.76,154.74,6.4623]
[1727744799791,0.3609138,154.76,154.72,23.776884]
[1727744799997,0.3609138,154.76,154.72,30.239784]
[1727744800200,0.3609138,154.76,154.72,23.776884]
[1727744800492,0.3609138,154.76,154.73,6.4627]
[1727744802398,0.3609138,154.76,154.75,6.462]
[1727744803484,0.3609138,154.76,154.75,30.238884]
[1727744814797,0.3609138,154.76,154.75,6.462]
[1727744815005,0.3609138,154.76,154.74,6.4624]
[1727744815508,0.3609138,154.76,154.75,6.462]
[1727744817390,0.3609138,154.76,154.75,30.238884]
[1727744818712,0.3609138,154.76,154.75,6.462]
[1727744818893,0.3609138,154.76,154.75,30.238884]
[1727744819311,0.3609138,154.76,154.75,60.238884]
[1727744821294,0.3609138,154.76,154.75,36.462]
[1727744821495,0.3609138,154.76,154.75,60.238884]
[1727744822515,0.3609138,154.76,154.75,30.238884]
[1727744823318,0.3609138,154.76,154.75,6.462]
[1727744823534,0.3609138,154.76,154.75,60.238884]
[1727744824218,0.3609138,154.76,154.75,36.462]
[1727744824808,0.3609138,154.76,154.73,22.6189]
[1727744825105,0.3609138,154.76,154.73,6.4628]
[1727744827407,0.3609138,154.76,154.75,41.81528731]
[1727744827724,0.3609138,154.76,154.75,48.30745741]
[1727744827920,0.3609138,154.76,154.75,64.80065741]
[1727744828427,0.3609138,154.76,154.75,46.732084]
[1727744828628,0.3609138,154.76,154.75,6.462]
[1727744834002,0.3609138,154.76,154.75,48.30745741]
[1727744835513,0.3609138,154.76,154.75,78.30745741]
[1727744837717,0.3609138,154.76,154.75,114.57595741]
[1727744838405,0.8418265,154.85,154.83,6.4586]
[1727744838612,0.8418265,154.85,154.81,18.06857341]
[1727744838613,0.8418265,154.85,154.81,34.21727341]
[1727744838816,0.8418265,154.85,154.76,6.2677]
[1727744839122,0.8418265,154.85,154.79,6.4602]
[1727744839123,7.2997265,154.85,154.79,6.4602]
[1727744839526,2.45636541,154.85,154.78,46.1519]
[1727744839720,1.61453891,154.84,154.76,6.4615]
[1727744839908,1.61453891,154.84,154.77,30.0]
[1727744840116,6.4594,154.82,154.77,36.461]
[1727744842130,6.4587,154.83,154.78,6.4607]
[1727744842427,0.8418265,154.85,154.79,6.4601]
[1727744842637,1.61465579,154.84,154.77,23.776884]
[1727744843006,6.4592,154.82,154.77,23.776884]
[1727744843537,6.4592,154.82,154.77,30.237784]
[1727744843835,6.4587,154.83,154.78,6.4607]
[1727744844026,6.4583,154.84,154.79,6.4603]
[1727744845726,7.2997265,154.85,154.8,30.236784]
[1727744845929,0.8418265,154.85,154.81,48.30485741]
[1727744846233,0.8418265,154.85,154.78,16.1703]
[1727744846234,7.2997265,154.85,154.8,30.236684]
[1727744846930,7.2997265,154.85,154.78,16.151]
[1727744846931,1.61437412,154.84,154.78,16.151]
[1727744847133,0.8418265,154.85,154.78,16.151]
[1727744847423,6.4587,154.83,154.79,30.0]
[1727744848313,6.4591,154.82,154.78,16.151]
[1727744848513,6.4587,154.83,154.78,22.6117]
[1727744848818,0.8418265,154.85,154.78,16.151]
[1727744849015,6.4591,154.82,154.78,16.151]
[1727744849237,6.4595,154.81,154.76,6.4615]
[1727744849417,6.4595,154.81,154.77,30.0]
[1727744849418,6.4607,154.78,154.77,30.0]
[1727744849734,6.4607,154.78,154.73,6.4626]
[1727744849930,6.4607,154.78,154.72,16.1579]
[1727744849931,6.4613,154.77,154.72,22.621]
[1727744850312,6.4613,154.77,154.73,30.0]
[1727744850515,6.4608,154.78,154.73,30.0]
[1727744850904,6.4608,154.78,154.73,36.4626]
[1727744851111,6.4608,154.78,154.73,6.4626]
[1727744852019,6.4604,154.79,154.73,6.4626]
[1727744852510,1.61514545,154.8,154.73,6.4626]
[1727744852710,6.4608,154.78,154.73,6.4626]
[1727744853432,6.3083,154.81,154.73,23.776884]
[1727744853610,6.4599,154.8,154.75,6.4616]
[1727744853930,6.3083,154.81,154.75,6.4616]
[1727744854133,6.4601,154.8,154.75,6.4616]
[1727744854528,6.3083,154.81,154.74,16.1553]
[1727744854712,12.7678,154.81,154.76,6.4615]
[1727744855531,6.4599,154.8,154.75,6.462]
[1727744856227,6.3083,154.81,154.77,6.4608]
[1727744857236,15.5658,154.84,154.77,23.776884]
[1727744857432,22.0244,154.84,154.79,6.4602]
[1727744857627,7.3012265,154.85,154.81,6.4592]
[1727744857815,7.3012265,154.85,154.8,23.776884]
[1727744858026,0.8418265,154.85,154.8,23.776884]
[1727744858212,0.8418265,154.85,154.76,15.081]
[1727744858213,0.8418265,154.85,154.84,6.4582]
[1727744858414,0.8418265,154.85,154.82,23.776884]
[1727744858730,0.8418265,154.85,154.83,6.4586]
[1727744859418,0.8418265,154.85,154.84,6.4582]
[1727744860136,0.8418265,154.85,154.83,6.4586]
[1727744860315,0.8418265,154.85,154.81,16.1487]
[1727744860736,0.8418265,154.85,154.81,22.6078]
[1727744861236,8.91423664,154.85,154.77,18.06857341]
[1727744861413,0.8418265,154.85,154.81,6.4594]
[1727744861813,7.2997265,154.85,154.8,16.1497]
[1727744862230,7.2997265,154.85,154.8,22.6093]
[1727744862625,0.8418265,154.85,154.81,6.4593]
[1727744868730,8.91424384,154.85,154.8,22.6095]
[1727744868936,7.2997265,154.85,154.8,22.6095]
[1727744869521,0.8418265,154.85,154.8,16.1497]
[1727744870325,0.8418265,154.85,154.81,6.4594]
[1727744870925,8.91406597,154.85,154.8,22.6095]
[1727744871131,7.2996265,154.85,154.8,22.6095]
[1727744871554,0.8418265,154.85,154.81,6.4594]
[1727744872642,7.2997265,154.85,154.81,6.4594]
[1727744872850,6.4583,154.84,154.8,16.1497]
[1727744873226,7.2997265,154.85,154.8,22.6095]
[1727744874547,0.8418265,154.85,154.8,22.6095]
[1727744874755,6.4583,154.84,154.8,22.6095]
[1727744875451,7.2996265,154.85,154.81,6.4595]
[1727744875827,0.8418265,154.85,154.81,6.4595]
[1727744876628,7.2997265,154.85,154.81,6.4595]
[1727744876850,8.07282114,154.84,154.8,16.1497]
[1727744877851,6.4591,154.82,154.78,6.4607]
[1727744878045,0.8418265,154.85,154.78,6.4607]
[1727744878236,6.4586,154.83,154.78,6.4607]
[1727744878437,8.07405119,154.82,154.77,22.6133]
[1727744878645,6.4587,154.83,154.78,6.4607]
[1727744880150,1.61492153,154.82,154.77,16.1525]
[1727744880458,6.4599,154.8,154.75,6.4619]
[1727744880647,1.61515457,154.8,154.68,1.12466722]
[1727744880843,1.61515457,154.8,154.67,15.2817]
[1727744880844,37.76565457,154.8,154.69,6.4644]
[1727744881038,6.4624,154.74,154.69,6.4644]
[1727744881231,6.4624,154.74,154.68,16.1623]
[1727744881429,6.4624,154.74,154.68,22.6269]
[1727744881659,6.462,154.76,154.68,16.1623]
[1727744881839,6.462,154.76,154.71,6.4636]
[1727744883602,1.61562779,154.75,154.68,16.1623]
[1727744883861,6.4625,154.74,154.69,6.4642]
[1727744884064,17.16245967,154.73,154.64,6.73730729]
[1727744884236,6.4633,154.72,154.66,6.4657]
[1727744884568,1.61612826,154.72,154.67,6.4652]
[1727744884861,15.5466,154.73,154.69,6.4644]
[1727744886044,15.5466,154.73,154.68,16.1621]
[1727744886045,22.0097,154.73,154.68,16.1621]
[1727744887245,22.0097,154.73,154.68,22.6269]
[1727744889661,1.61594788,154.72,154.68,22.6269]
[1727744889862,22.0097,154.73,154.68,22.6269]
[1727744890161,6.4641,154.7,154.65,6.4662]
[1727744890365,6.4637,154.71,154.65,6.4662]
[1727744890544,1.61625142,154.7,154.65,6.4662]
[1727744891252,1.61625142,154.7,154.66,6.4655]
[1727744891966,26.4633,154.72,154.67,6.4653]
[1727744892145,28.07934365,154.72,154.67,6.4653]
[1727744892349,28.07934365,154.72,154.64,23.776884]
[1727744892552,28.07934365,154.72,154.66,6.4657]
[1727744893068,28.07934365,154.72,154.63,23.776884]
[1727744893069,20.0,154.72,154.65,23.776884]
[1727744893362,21.6160012,154.72,154.68,6.4648]
[1727744893665,20.0,154.72,154.68,6.4648]
[1727744894045,21.61599874,154.72,154.68,6.4648]
[1727744894669,20.0,154.72,154.68,6.4648]
[1727744894971,20.0,154.72,154.67,6.4653]
[1727744894972,21.61600652,154.72,154.67,6.4653]
[1727744897071,28.07920652,154.72,154.67,6.4653]
[1727744898878,6.4638,154.71,154.66,22.6298]
[1727744899052,8.0798212,154.71,154.66,16.1644]
[1727744899246,6.4638,154.71,154.66,22.6298]
[1727744899453,20.0,154.72,154.67,6.4652]
[1727744899952,21.61605277,154.72,154.67,6.4652]
[1727744900351,20.0,154.72,154.67,6.4652]
[1727744900558,21.61605191,154.72,154.67,6.4652]
[1727744900873,21.61605191,154.72,154.66,16.1644]
[1727744900874,20.0,154.72,154.68,6.4647]
[1727744901169,15.5466,154.73,154.66,18.088928]
[1727744901371,15.1851,154.77,154.69,23.776884]
[1727744901675,15.1851,154.77,154.74,6.4624]
[1727744901969,6.1632,154.78,154.74,6.4624]
[1727744902175,6.1632,154.78,154.71,6.4634]
[1727744902176,1.6155094,154.77,154.71,6.4634]
[1727744902382,1.6155094,154.77,154.69,16.1611]
[1727744902554,6.4623,154.75,154.69,22.6252]
[1727744902856,16.80099539,154.74,154.69,22.6252]
[1727744903047,15.1851,154.74,154.69,22.6252]
[1727744903678,1.61589744,154.73,154.69,22.6252]
[1727744904065,1.61589744,154.73,154.69,16.1611]
[1727744904870,26.4615,154.77,154.71,6.4635]
[1727744905175,8.07728917,154.76,154.69,16.1611]
[1727744905371,6.4621,154.75,154.7,6.464]
[1727744905675,6.4616,154.76,154.7,6.464]
[1727744907079,26.4612,154.77,154.71,6.4633]
[1727744907278,1.61569046,154.76,154.71,6.4633]
[1727744907773,21.3483,154.78,154.69,23.776884]
[1727744907977,21.3483,154.78,154.74,6.4624]
[1727744908167,22.96376013,154.78,154.73,6.4628]
[1727744908370,29.42446013,154.78,154.73,6.4628]
[1727744908578,27.809,154.78,154.73,6.4628]
[1727744909175,1.61546183,154.77,154.73,6.4628]
[1727744909964,27.809,154.78,154.73,6.4628]
[1727744911175,1.61546334,154.77,154.71,16.1584]
[1727744911673,20.0,154.77,154.68,16.1621]
[1727744911872,6.4616,154.76,154.71,6.4636]
[1727744912179,8.07775493,154.75,154.7,6.464]
[1727744912482,20.0,154.77,154.68,16.1621]
[1727744912656,6.4616,154.76,154.71,6.4636]
[1727744912859,1.61567093,154.75,154.71,6.4636]
[1727744913260,6.4616,154.76,154.71,6.4636]
[1727744913483,8.07728768,154.76,154.71,6.4636]
[1727744913782,6.4616,154.76,154.71,6.4636]
[1727744913965,20.0,154.77,154.71,23.776884]
[1727744914164,20.0,154.77,154.74,6.4624]
[1727744914579,21.3483,154.78,154.75,6.4618]
[1727744914757,6.46,154.8,154.75,6.462]
[1727744915280,6.462,154.76,154.71,6.4636]
[1727744915482,1.61564192,154.75,154.71,6.4636]
[1727744915659,1.61564192,154.75,154.7,16.1597]
[1727744915987,20.0,154.78,154.7,16.1597]
[1727744916170,1.61585376,154.77,154.7,16.1597]
[1727744917064,1.61585376,154.77,154.64,31.14677733]
[1727744918381,6.4629,154.73,154.68,6.4649]
[1727744918893,1.61585376,154.77,154.67,16.163]
[1727744919081,6.462,154.75,154.7,6.464]
[1727744919782,36.1526,154.78,154.67,16.163]
[1727744919988,6.4633,154.72,154.67,22.6283]
[1727744920187,1.61603253,154.71,154.67,16.163]
[1727744920371,6.4637,154.71,154.67,16.163]
[1727744921187,6.4633,154.72,154.67,22.6282]
[1727744921865,20.0,154.76,154.67,22.6282]
[1727744922073,6.4629,154.73,154.68,6.4648]
[1727744922273,1.61601666,154.72,154.68,6.4648]
[1727744922790,6.4629,154.73,154.68,6.4648]
[1727744922975,1.6160156,154.72,154.68,6.4648]
[1727744923178,6.4629,154.73,154.68,6.4648]
[1727744923860,6.4629,154.73,154.68,6.4649]
[1727744926481,6.4625,154.74,154.69,6.4644]
[1727744927381,1.61590756,154.73,154.69,6.4644]
[1727744927565,6.4625,154.74,154.69,6.4644]
[1727744928185,1.61591151,154.73,154.69,6.4644]
[1727744928588,6.4625,154.74,154.69,6.4644]
[1727744928883,6.462,154.75,154.7,6.4639]
[1727744929471,36.1526,154.78,154.67,16.163]
[1727744929472,29.52180205,154.79,154.69,23.776884]
[1727744929669,22.7818,154.79,154.69,23.776884]
[1727744929893,6.4616,154.76,154.71,6.4636]
[1727744930186,1.61562177,154.78,154.71,16.1584]
[1727744930388,6.4621,154.75,154.71,16.1584]
[1727744930589,1.61572932,154.74,154.71,16.1584]
[1727744931693,6.4621,154.75,154.71,16.1584]
[1727744937692,6.4629,154.73,154.66,16.1635]
[1727744937891,20.0,154.75,154.67,23.776884]
[1727744938102,6.4616,154.76,154.71,6.4633]
[1727744939499,6.4616,154.76,154.71,6.4634]
[1727744941101,8.07773154,154.75,154.7,22.6235]
[1727744941271,6.462,154.75,154.7,22.6235]
[1727744943798,20.0,154.79,154.71,23.776884]
[1727744944001,26.4604,154.79,154.74,6.4623]
[1727744945402,1.61540905,154.78,154.74,6.4623]
[1727744945972,8.07620905,154.78,154.72,22.6203]
[1727744946281,6.4612,154.77,154.72,22.6203]
[1727744946677,6.4609,154.78,154.73,6.4627]
[1727744946884,8.07639405,154.78,154.73,6.4627]
[1727744947282,15.0272,154.8,154.71,23.776884]
[1727744947283,15.0272,154.8,154.71,41.86958596]
[1727744947583,1.61521834,154.83,154.76,6.4615]
[1727744947784,21.61521834,154.83,154.75,16.155]
[1727744948107,6.46,154.8,154.75,22.6166]
[1727744950099,1.61517104,154.79,154.75,22.6166]
[1727744951206,1.61517104,154.79,154.75,16.155]
[1727744951386,1.61517104,154.79,154.73,23.776884]
[1727744951702,6.4616,154.76,154.71,16.1584]
[1727744951888,1.6156904,154.75,154.71,22.622]
[1727744952399,8.0779904,154.75,154.71,16.1584]
[1727744952801,1.61576078,154.74,154.71,16.1584]
[1727744953402,1.61576078,154.74,154.68,15.3446]
[1727744953403,8.07836078,154.74,154.69,6.4645]
[1727744953701,6.4621,154.75,154.7,6.464]
[1727744954905,1.61574263,154.74,154.7,6.464]
[1727744956093,1.61574263,154.74,154.71,6.4636]
[1727744956695,8.07785017,154.75,154.71,6.4636]
[1727744957823,20.0,154.77,154.71,6.4636]
[1727744958106,6.4611,154.78,154.71,18.09270196]
[1727744958519,6.4611,154.78,154.72,23.776884]
[1727744958685,22.6484,154.82,154.72,23.776884]
[1727744958891,37.76515221,154.81,154.71,6.4632]
[1727744959082,37.76515221,154.81,154.68,15.3446]
[1727744959281,6.4628,154.74,154.69,6.4645]
[1727744959705,20.0,154.78,154.68,15.3446]
[1727744959897,6.4619,154.76,154.69,23.776884]
[1727744960097,6.4619,154.76,154.71,6.4636]
[1727744960806,1.61574906,154.75,154.69,30.240984]
[1727744961016,6.4628,154.74,154.68,6.4648]
[1727744961208,1.61599099,154.73,154.68,16.162]
[1727744961510,6.4628,154.74,154.69,6.4643]
[1727744962785,22.3739,154.76,154.68,16.162]
[1727744962992,8.07770975,154.75,154.71,6.4636]
[1727744963400,1.61570975,154.75,154.68,16.162]
[1727744963599,6.4625,154.74,154.69,6.4643]
[1727744963806,28.8358,154.76,154.7,6.4641]